bitfinex-derivatives/quotes_SOLF0:USTF0_20241021
["timestamp","ask_amount","ask_price","bid_price","bid_amount"]
[1729533020545,4.66,165.91,165.87,3.0155]
[1729533021045,4.66,165.91,165.81,3.8549]
[1729533021344,4.66,165.91,165.88,3.0155]
[1729533021939,4.66,165.91,165.81,3.8549]
[1729533022746,4.66,165.91,165.89,3.0153]
[1729533023441,3.0149,165.92,165.89,3.0153]
[1729533023643,4.66,165.91,165.89,3.0153]
[1729533035463,4.66,165.91,165.81,14.5485]
[1729533036059,4.66,165.91,165.88,3.0154]
[1729533036461,3.0149,165.92,165.88,3.0154]
[1729533036662,4.66,165.9,165.81,14.5485]
[1729533038963,4.66,165.9,165.88,3.0154]
[1729533047578,4.66,165.9,165.89,3.0154]
[1729533048675,68.1849088,165.94,165.89,3.0154]
[1729533048874,4.66,165.92,165.89,3.0154]
[1729533049381,4.66,165.92,165.9,3.0152]
[1729533051979,71.1994088,165.94,165.81,8.5149]
[1729533051980,68.1849088,165.94,165.81,8.5149]
[1729533052182,4.66,165.93,165.81,8.5149]
[1729533052478,4.66,165.93,165.91,3.0149]
[1729533052676,2.9849088,165.94,165.85,4.66]
[1729533052875,4.66,165.95,165.85,4.66]
[1729533053076,2.95915472,165.95,165.86,6.0317]
[1729533053276,4.66,165.97,165.86,6.0317]
[1729533053478,4.66,165.97,165.94,3.0143]
[1729533053677,3.0137,165.99,165.94,3.0143]
[1729533053977,4.66,165.98,165.87,3.8654]
[1729533054186,7.72741491,165.98,165.87,3.8654]
[1729533054881,7.72741491,165.98,165.95,3.0143]
[1729533056885,3.06741491,165.98,165.95,3.0143]
[1729533057182,4.66,165.98,165.96,3.0141]
[1729533057389,7.70130042,165.98,165.96,3.0141]
[1729533059679,3.04130042,165.98,165.96,3.0141]
[1729533059885,4.66,165.98,165.96,3.0141]
[1729533060080,7.61476793,165.98,165.96,3.0141]
[1729533060973,7.61476793,165.98,165.95,3.0142]
[1729533062589,7.61476793,165.98,165.96,3.014]
[1729533063278,3.014,165.97,165.93,3.0145]
[1729533063481,7.61476793,165.98,165.93,3.0145]
[1729533063687,7.61476793,165.98,165.87,3.8654]
[1729533064184,3.0142,165.96,165.92,3.0147]
[1729533064881,3.0142,165.96,165.87,3.8654]
[1729533065081,25.74476793,165.98,165.87,2.507]
[1729533065282,2.5336,165.97,165.87,2.507]
[1729533065480,5.5477,165.97,165.93,3.0145]
[1729533065783,5.5477,165.97,165.87,2.507]
[1729533065784,2.5336,165.97,165.87,2.507]
[1729533066482,3.0143,165.95,165.87,2.507]
[1729533066682,4.66,165.94,165.87,2.507]
[1729533067979,4.66,165.94,165.91,3.0149]
[1729533068784,2.95476793,165.98,165.87,2.507]
[1729533069085,90.6948489,166.0,165.87,2.507]
[1729533069285,4.66,165.99,165.87,7.167]
[1729533069890,7.6735,165.99,165.87,7.167]
[1729533071489,7.6735,165.99,165.95,3.0142]
[1729533072290,7.6735,165.99,165.87,7.167]
[1729533072485,7.6735,165.99,165.95,3.0143]
[1729533074488,7.6735,165.99,165.87,7.167]
[1729533074685,7.6735,165.99,165.96,3.0141]
[1729533082292,7.6735,165.99,165.97,3.0139]
[1729533084593,93.74634935,166.0,165.99,3.0135]
[1729533084793,3.05150045,166.0,165.99,3.0135]
[1729533085096,4.64,166.01,165.92,1.3479]
[1729533085300,7.63516772,166.01,166.0,3.0134]
[1729533087296,7.63516772,166.01,165.98,3.0136]
[1729533087502,7.63516772,166.01,165.93,2.5557]
[1729533088295,10.64836772,166.01,165.97,3.0138]
[1729533090096,7.63516772,166.01,165.93,2.5557]
[1729533090298,7.63516772,166.01,165.98,3.0137]
[1729533092306,10.64836772,166.01,165.97,3.0139]
[1729533097296,7.63516772,166.01,165.92,1.3479]
[1729533097494,7.63516772,166.01,165.89,4.64]
[1729533098307,3.0135,166.0,165.95,3.0142]
[1729533098508,7.63516772,166.01,165.95,3.0142]
[1729533098703,7.63516772,166.01,165.89,4.64]
[1729533099000,7.63516772,166.01,165.9,1.239]
[1729533099398,7.63516772,166.01,166.0,3.0134]
[1729533102206,7.63516772,166.01,165.99,3.0134]
[1729533102402,7.63516772,166.01,165.92,2.5381]
[1729533102910,10.64846772,166.01,165.96,3.0139]
[1729533103405,7.63516772,166.01,165.98,3.0137]
[1729533105414,7.63516772,166.01,165.99,3.0135]
[1729533105615,7.63516772,166.01,165.92,2.5381]
[1729533106606,7.63516772,166.01,165.99,3.0134]
[1729533109612,7.63516772,166.01,165.92,2.5381]
[1729533110209,7.63516772,166.01,165.99,3.0134]
[1729533111918,7.82754739,166.01,165.92,2.5381]
[1729533112215,7.82754739,166.01,165.94,3.0143]
[1729533112411,2.5756,166.0,165.94,3.0143]
[1729533112923,3.0138,165.98,165.94,3.0143]
[1729533113219,4.64,165.97,165.94,3.0143]
[1729533114112,4.64,165.97,165.96,3.0141]
[1729533122121,4.64,165.97,165.91,2.5712]
[1729533122832,4.64,165.97,165.95,3.0141]
[1729533123122,4.64,165.97,165.91,2.5712]
[1729533123524,4.64,165.97,165.95,3.0142]
[1729533123824,4.64,165.97,165.9,1.239]
[1729533124830,4.64,165.97,165.95,3.0142]
[1729533125017,4.64,165.97,165.9,1.239]
[1729533125417,4.64,165.97,165.96,3.0141]
[1729533131419,4.64,166.0,165.98,3.0136]
[1729533132231,4.64,166.0,165.93,3.0146]
[1729533132430,4.64,166.0,165.9,7.38663323]
[1729533132835,4.64,166.0,165.99,3.0135]
[1729533137128,4.64,166.0,165.91,6.0299]
[1729533137337,4.64,166.0,165.98,3.0136]
[1729533139331,4.64,166.0,165.97,3.0138]
[1729533139534,4.64,166.0,165.91,6.0299]
[1729533139733,4.64,166.0,165.9,1.239]
[1729533140041,3.014,165.97,165.88,2.6154]
[1729533140240,4.64,165.96,165.88,2.6154]
[1729533140437,4.64,165.96,165.93,3.0145]
[1729533140743,4.64,165.96,165.88,2.6154]
[1729533141840,4.64,165.96,165.93,3.0145]
[1729533142244,7.6541,165.96,165.88,2.6154]
[1729533143445,7.6541,165.96,165.91,3.0148]
[1729533144147,4.64,165.96,165.91,3.0148]
[1729533144349,4.64,165.96,165.9,3.0151]
[1729533144350,3.0144,165.95,165.9,3.0151]
[1729533145249,3.0144,165.95,165.91,3.015]
[1729533147244,4.64,165.96,165.86,1.50804815]
[1729533147448,3.0145,165.94,165.9,3.0151]
[1729533147648,3.0145,165.94,165.86,1.50806283]
[1729533147954,3.0145,165.94,165.9,3.0151]
[1729533148556,3.0147,165.93,165.89,3.0153]
[1729533148964,4.64,165.92,165.89,3.0153]
[1729533149161,7.70043455,165.92,165.89,3.0153]
[1729533152253,3.0151,165.91,165.86,3.0158]
[1729533154654,3.0151,165.91,165.83,2.6437]
[1729533154957,3.0151,165.91,165.87,3.0157]
[1729533155349,3.0154,165.89,165.85,3.016]
[1729533155653,4.64,165.88,165.85,3.016]
[1729533156160,4.64,165.88,165.8,1.2619]
[1729533156360,4.64,165.88,165.86,3.0158]
[1729533156963,4.64,165.88,165.84,3.0161]
[1729533157259,4.64,165.88,165.8,1.2619]
[1729533157762,7.6555,165.88,165.84,3.0161]
[1729533158258,4.64,165.88,165.82,3.0166]
[1729533158463,4.64,165.88,165.8,1.2619]
[1729533159152,4.64,165.88,165.84,3.0161]
[1729533160949,4.64,165.88,165.8,1.2619]
[1729533161156,3.06043455,165.92,165.8,1.2619]
[1729533161457,4.64,165.94,165.8,1.2619]
[1729533161762,4.64,165.94,165.92,3.0146]
[1729533161961,4.64,165.94,165.84,4.64]
[1729533162157,4.64,165.94,165.84,7.3345]
[1729533162857,4.64,165.94,165.93,3.0146]
[1729533163155,4.64,165.94,165.84,7.3345]
[1729533163360,4.64,165.94,165.93,3.0146]
[1729533164360,21.8764,166.0,165.86,1.2607]
[1729533164559,7.6536,165.99,165.94,3.0144]
[1729533166963,7.6536,165.99,165.95,3.0142]
[1729533167552,4.64,165.99,165.96,3.014]
[1729533167866,4.64,165.99,165.87,6.0314]
[1729533168063,1.2543,166.03,165.99,3.0135]
[1729533168364,4.64,166.0,165.88,4.64]
[1729533168559,4.64,166.0,165.97,3.0137]
[1729533168859,4.64,166.0,165.89,6.0307]
[1729533169064,4.64,166.0,165.9,2.5073]
[1729533169950,4.64,166.0,165.97,3.0139]
[1729533171561,4.64,166.0,165.9,2.5073]
[1729533172265,7.6534,166.0,165.95,3.0141]
[1729533172467,7.6534,166.0,165.9,2.5073]
[1729533174763,3.0136,165.99,165.9,2.5073]
[1729533174966,4.64,166.0,165.95,3.0142]
[1729533175165,4.64,166.0,165.9,2.5073]
[1729533175369,7.6534,166.0,165.95,3.0142]
[1729533175566,7.6534,166.0,165.9,2.5073]
[1729533175762,4.64,166.0,165.9,2.5073]
[1729533176162,3.0137,165.99,165.94,3.0143]
[1729533176571,3.0137,165.99,165.95,3.0142]
[1729533176961,3.0139,165.97,165.88,4.64]
[1729533177163,4.64,165.96,165.88,4.64]
[1729533177563,4.64,165.96,165.93,3.0145]
[1729533177760,4.64,165.96,165.88,4.64]
[1729533178269,4.64,165.96,165.95,3.0143]
[1729533180471,4.64,165.99,165.97,3.0138]
[1729533180670,4.64,165.99,165.88,10.6711]
[1729533180865,4.64,165.99,165.94,3.0144]
[1729533181373,7.6536,165.99,165.94,3.0144]
[1729533181777,7.6536,165.99,165.88,10.6711]
[1729533182070,4.64,165.99,165.88,10.6711]
[1729533182474,4.64,165.99,165.96,3.014]
[1729533183073,4.64,165.99,165.97,3.0138]
[1729533183670,4.62,166.0,165.97,3.0138]
[1729533184967,4.62,166.0,165.98,3.0136]
[1729533187273,4.62,166.0,165.99,3.0135]
[1729533188480,3.18754739,166.01,165.92,5.8636]
[1729533188683,7.80754739,166.01,166.0,3.0134]
[1729533198679,7.80754739,166.01,165.92,5.8636]
[1729533199100,7.80754739,166.01,165.91,2.5589]
[1729533199279,3.0142,165.96,165.86,10.6517]
[1729533199586,4.62,165.96,165.86,10.6517]
[1729533199981,4.62,165.96,165.93,3.0145]
[1729533200791,4.62,165.96,165.88,6.0309]
[1729533201481,4.62,165.96,165.95,3.0143]
[1729533201780,7.6342,165.96,165.91,3.0149]
[1729533205581,7.6342,165.96,165.84,8.4886]
[1729533205582,4.62,165.96,165.84,8.4886]
[1729533206682,4.62,165.96,165.85,6.0322]
[1729533207184,4.62,165.96,165.88,3.0155]
[1729533207382,4.62,165.96,165.85,6.0322]
[1729533207786,4.62,165.96,165.93,3.0145]
[1729533208285,4.62,165.96,165.85,6.0322]
[1729533208487,3.18754739,166.01,165.84,8.4886]
[1729533208690,4.62,166.0,165.84,9.99665777]
[1729533208988,4.62,166.0,165.84,8.4886]
[1729533209187,4.62,166.0,165.84,9.99665777]
[1729533209378,4.62,166.0,165.84,8.4886]
[1729533209585,7.6334,166.0,165.96,3.0139]
[1729533210081,3.18754739,166.01,166.0,3.0134]
[1729533211487,0.19237967,166.01,166.0,3.0134]
[1729533212989,6.29106293,166.01,166.0,3.0134]
[1729533215391,2.21856293,166.01,166.0,3.0134]
[1729533215688,5.84223081,166.1,165.98,4.62]
[1729533215889,4.62,166.09,165.99,2.578]
[1729533216095,4.62,166.09,166.08,3.0119]
[1729533218899,4.62,166.09,165.99,2.578]
[1729533219993,4.62,166.09,166.05,3.0124]
[1729533220392,4.62,166.09,165.99,2.578]
[1729533220795,4.62,166.09,166.05,3.0123]
[1729533223293,3.0119,166.08,165.99,2.578]
[1729533223497,4.62,166.09,165.95,4.62]
[1729533223694,2.5674,166.07,165.95,4.62]
[1729533224095,3.0124,166.06,166.01,3.013]
[1729533224301,4.62,166.05,165.92,8.6697]
[1729533224500,4.62,166.05,165.92,13.2897]
[1729533224701,3.0129,166.03,165.98,3.0136]
[1729533224900,6.04816001,166.03,165.98,3.0136]
[1729533225307,6.04816001,166.03,165.99,3.0135]
[1729533229698,6.04816001,166.03,166.0,3.0133]
[1729533230406,3.03526001,166.03,166.0,3.0133]
[1729533230601,4.3641,166.04,166.0,3.0133]
[1729533232507,4.3641,166.04,166.0,3.0132]
[1729533232807,3.0131,166.02,165.92,8.6697]
[1729533233012,4.62,166.01,165.92,8.6697]
[1729533233209,4.62,166.01,165.99,3.0135]
[1729533233398,4.62,166.01,165.92,8.6697]
[1729533233896,4.62,166.01,165.94,3.0143]
[1729533234096,4.62,166.01,165.92,8.6697]
[1729533234899,4.62,166.01,165.99,3.0135]
[1729533236903,2.96581161,166.02,165.92,2.6401]
[1729533237099,4.62,166.03,165.93,6.0293]
[1729533237408,3.01174917,166.02,165.93,6.0293]
[1729533239007,3.01174917,166.02,166.01,3.0132]
[1729533247415,4.62,166.03,165.93,6.0293]
[1729533247615,4.62,166.03,165.93,10.6493]
[1729533248116,7.64977224,166.03,165.93,10.6493]
[1729533248317,10.66277224,166.03,165.98,3.0136]
[1729533248921,10.66277224,166.03,165.99,3.0135]
[1729533253027,10.66277224,166.03,166.0,3.0133]
[1729533254124,7.64977224,166.03,166.0,3.0133]
[1729533258031,7.64977224,166.03,166.01,3.0132]
[1729533267637,10.66257224,166.03,166.01,3.0132]
[1729533268637,7.64977224,166.03,166.01,3.0132]
[1729533277950,10.66257224,166.03,166.01,3.0132]
[1729533280847,7.64977224,166.03,165.92,2.6401]
[1729533281645,25.77977224,166.03,165.9,1.50762663]
[1729533281841,1.0,166.02,165.86,6.12762663]
[1729533282060,3.0138,165.98,165.94,3.0143]
[1729533282350,4.62,165.97,165.94,3.0143]
[1729533290046,7.634,165.97,165.93,3.0146]
[1729533290745,4.62,165.97,165.94,3.0144]
[1729533292459,7.6339,165.97,165.93,3.0146]
[1729533292659,4.62,165.97,165.87,1.50791731]
[1729533292957,4.62,165.97,165.88,1.50791731]
[1729533293154,4.62,165.97,165.94,3.0143]
[1729533300666,4.62,165.97,165.87,1.50790434]
[1729533300858,4.62,165.97,165.96,3.0141]
[1729533301054,4.62,165.97,165.88,6.031]
[1729533301461,4.62,165.97,165.88,7.53889374]
[1729533301662,4.62,165.97,165.94,3.0143]
[1729533302660,3.0143,165.95,165.87,3.0156]
[1729533302854,4.62,165.97,165.84,120.42001654]
[1729533302855,5.9763,165.97,165.85,1.50799033]
[1729533303061,24.1063,165.97,165.84,120.42001654]
[1729533303253,24.1063,165.97,165.9,3.0151]
[1729533303254,3.0145,165.94,165.9,3.0151]
[1729533303467,4.6,165.93,165.84,120.42001654]
[1729533304058,4.6,165.93,165.9,3.0151]
[1729533304265,2.98527851,165.93,165.85,6.0322]
[1729533304463,4.6,165.94,165.86,1.50812269]
[1729533304659,4.6,165.95,165.94,3.0144]
[1729533304860,4.6,165.95,165.85,4.6]
[1729533304861,4.6,165.95,165.87,6.0314]
[1729533305261,4.6,165.95,165.94,3.0144]
[1729533310671,4.6,165.95,165.87,6.0314]
[1729533311169,4.6,165.95,165.93,3.0145]
[1729533319075,4.6,165.95,165.87,1.50793385]
[1729533319274,4.6,165.95,165.94,3.0144]
[1729533323174,4.6,165.95,165.87,1.50793385]
[1729533323180,34.98208273,166.01,165.87,1.50793222]
[1729533323467,4.6,166.0,165.89,6.0306]
[1729533323674,7.6134,166.0,165.9,2.5759]
[1729533324069,4.6,166.0,165.9,2.5759]
[1729533325676,3.0136,165.99,165.9,2.5759]
[1729533326175,3.0136,165.99,165.94,3.0143]
[1729533326770,3.0137,165.98,165.94,3.0143]
[1729533326974,4.6,166.0,165.94,3.0143]
[1729533327173,4.6,166.0,165.93,3.0145]
[1729533327174,3.0139,165.97,165.93,3.0145]
[1729533327371,3.0139,165.97,165.85,6.0321]
[1729533327372,4.6,165.96,165.87,1.50792844]
[1729533327571,4.6,165.95,165.86,1.50801854]
[1729533327778,3.0147,165.93,165.89,3.0152]
[1729533327976,4.6,165.92,165.85,4.15680695]
[1729533328366,4.6,165.92,165.89,3.0152]
[1729533328774,7.60168098,165.92,165.89,3.0152]
[1729533334075,7.60168098,165.92,165.85,2.6487]
[1729533334389,7.60168098,165.92,165.8,6.0339]
[1729533334684,8.91988098,165.92,165.8,6.0339]
[1729533335282,3.0154,165.89,165.85,3.016]
[1729533335489,4.6,165.88,165.78,4.6]
[1729533335785,4.6,165.87,165.84,114.90041654]
[1729533336484,4.6,165.87,165.84,3.0162]
[1729533336986,4.6,165.87,165.86,3.0159]
[1729533338977,4.6,165.9,165.88,3.0154]
[1729533339182,4.6,165.9,165.82,4.08486348]
[1729533339377,4.6,165.9,165.81,1.50836348]
[1729533339580,4.6,165.9,165.77,4.6]
[1729533339781,4.6,165.9,165.78,1.50836348]
[1729533340086,1.3418,165.89,165.78,1.50836348]
[1729533340288,2.6938,165.89,165.77,1.50836348]
[1729533341088,3.0158,165.87,165.83,3.0163]
[1729533341289,4.6,165.86,165.83,3.0163]
[1729533342289,4.6,165.86,165.76,6.10866829]
[1729533342589,4.6,165.86,165.77,1.50866829]
[1729533342987,4.6,165.86,165.83,3.0163]
[1729533346679,4.6,165.86,165.76,1.50866185]
[1729533346884,4.6,165.86,165.75,2.5765]
[1729533347379,3.0164,165.84,165.8,3.0169]
[1729533347584,4.6,165.86,165.8,3.0169]
[1729533347984,3.0162,165.85,165.81,3.0168]
[1729533348292,4.6,165.86,165.75,2.5765]
[1729533348494,7.616,165.86,165.75,2.5765]
[1729533349189,7.616,165.86,165.82,3.0166]
[1729533350491,4.6,165.85,165.82,3.0166]
[1729533351493,3.016,165.86,165.82,3.0166]
[1729533351697,4.6,165.85,165.75,2.5765]
[1729533351994,4.6,165.85,165.76,6.0351]
[1729533353190,4.6,165.85,165.75,2.5765]
[1729533353391,4.6,165.85,165.71,1.50883429]
[1729533353596,4.6,165.85,165.7,2.5202]
[1729533354094,1.0,165.84,165.7,2.5202]
[1729533354488,1.0,165.84,165.71,4.6]
[1729533354699,4.6,165.83,165.71,4.6]
[1729533355400,7.62709739,165.83,165.71,4.6]
[1729533355795,7.62709739,165.83,165.8,3.0168]
[1729533357500,7.62709739,165.83,165.71,4.6]
[1729533357702,7.62709739,165.83,165.81,3.0168]
[1729533358301,3.02709739,165.83,165.82,3.0166]
[1729533359791,4.6,165.84,165.76,2.5392]
[1729533362098,4.6,165.84,165.8,3.0169]
[1729533364101,4.6,165.84,165.76,2.5392]
[1729533364301,4.6,165.84,165.82,3.0165]
[1729533364698,3.05647605,165.83,165.82,3.0165]
[1729533366399,4.6,165.84,165.82,3.0165]
[1729533366604,3.04923464,165.83,165.76,2.5392]
[1729533366904,4.6,165.84,165.76,1.2936]
[1729533367202,3.0166,165.83,165.77,3.0174]
[1729533367404,2.97421473,165.83,165.71,4.6]
[1729533367605,4.6,165.84,165.71,4.6]
[1729533368403,4.6,165.84,165.8,3.0169]
[1729533370508,4.6,165.87,165.75,4.6]
[1729533370707,4.6,165.87,165.76,2.5328]
[1729533371301,7.6158,165.87,165.76,2.5328]
[1729533372009,7.6158,165.87,165.79,3.0171]
[1729533372209,7.6158,165.87,165.76,2.5328]
[1729533372409,4.6,165.87,165.76,2.5328]
[1729533372610,4.6,165.87,165.83,3.0163]
[1729533373599,7.6157,165.87,165.83,3.0163]
[1729533374408,4.6,165.87,165.83,3.0163]
[1729533375308,4.6,165.87,165.84,3.0162]
[1729533375712,7.6158,165.87,165.76,2.5328]
[1729533376505,7.6158,165.87,165.82,3.0165]
[1729533376812,7.6158,165.87,165.76,2.5328]
[1729533377110,7.6158,165.87,165.83,3.0164]
[1729533379613,4.6,165.87,165.83,3.0164]
[1729533379912,3.016,165.86,165.83,3.0164]
[1729533380613,4.6,165.87,165.83,3.0164]
[1729533380614,7.6158,165.87,165.83,3.0164]
[1729533380816,7.6158,165.87,165.84,3.0163]
[1729533384215,7.6157,165.87,165.84,3.0162]
[1729533388224,3.016,165.86,165.84,3.0162]
[1729533388619,4.6,165.87,165.82,3.0165]
[1729533388923,3.0161,165.85,165.82,3.0165]
[1729533389317,3.0161,165.85,165.83,3.0164]
[1729533390813,3.0168,165.82,165.79,3.0171]
[1729533391126,10.70008673,165.82,165.79,3.0171]
[1729533391315,7.6768,165.82,165.78,3.0172]
[1729533391928,10.6901288,165.82,165.78,3.0172]
[1729533392118,3.0169,165.81,165.74,3.018]
[1729533392424,7.6733288,165.82,165.71,4.66]
[1729533392624,10.6900288,165.82,165.77,3.0174]
[1729533393719,7.6733288,165.82,165.77,3.0174]
[1729533394122,7.6733288,165.82,165.68,1.50882935]
[1729533394335,7.6733288,165.82,165.69,2.5804]
[1729533394336,4.66,165.81,165.69,2.5804]
[1729533394531,4.66,165.81,165.69,5.63417979]
[1729533394722,4.66,165.81,165.79,3.0172]
[1729533394924,4.66,165.81,165.71,7.66216406]
[1729533395231,4.66,165.81,165.8,3.017]
[1729533396233,3.05129864,165.83,165.73,1.50914102]
[1729533396535,4.66,165.83,165.82,3.0166]
[1729533396821,1.2532,165.87,165.74,2.5542]
[1729533397026,4.66,165.86,165.84,3.0162]
[1729533397434,4.66,165.86,165.75,4.66]
[1729533397625,4.66,165.88,165.76,6.0355]
[1729533397825,4.66,165.88,165.75,6.16914102]
[1729533397826,4.66,165.88,165.77,1.50914102]
[1729533398023,4.66,165.88,165.76,1.50914102]
[1729533398224,4.66,165.88,165.87,3.0157]
[1729533422061,3.00168098,165.92,165.83,4.6]
[1729533422264,4.6,165.93,165.85,6.032]
[1729533422455,2.99401872,165.93,165.85,6.032]
[1729533422757,4.6,165.94,165.93,3.0146]
[1729533423461,7.61242024,165.94,165.93,3.0146]
[1729533425251,4.6,165.94,165.93,3.0146]
[1729533425452,7.62635264,165.94,165.93,3.0146]
[1729533444979,4.6,165.94,165.93,3.0146]
[1729533445281,65.12,165.97,165.96,3.014]
[1729533445282,4.6,165.97,165.96,3.014]
[1729533446580,4.6,165.98,165.97,3.0139]
[1729533448982,1.2971,166.0,165.99,3.0135]
[1729533449177,5.8971,166.0,165.99,3.0135]
[1729533450480,13.04798273,166.01,166.0,3.0134]
[1729533450681,17.64798273,166.01,166.0,3.0134]
[1729533454691,13.04798273,166.01,166.0,3.0134]
[1729533463987,13.04798273,166.01,165.9,1.3005]
[1729533464285,4.6,166.0,165.9,1.3005]
[1729533464483,3.0137,165.99,165.9,1.3005]
[1729533465694,3.0137,165.99,165.94,3.0143]
[1729533469496,3.0137,165.99,165.95,3.0142]
[1729533470295,4.6,166.0,165.84,111.87072765]
[1729533470296,22.7,166.0,165.84,111.87072765]
[1729533470497,2.5583,165.98,165.84,119.16702765]
[1729533470995,3.0144,165.95,165.9,3.015]
[1729533471197,4.58,165.94,165.9,3.015]
[1729533471399,4.58,165.94,165.91,3.015]
[1729533475495,4.58,165.94,165.92,3.0148]
[1729533475698,1.2256,165.97,165.84,114.56702765]
[1729533475895,4.58,165.96,165.84,114.56702765]
[1729533476092,4.58,165.96,165.92,3.0146]
[1729533476298,7.5942,165.96,165.92,3.0146]
[1729533476492,4.58,165.96,165.92,3.0146]
[1729533476797,3.0143,165.95,165.86,6.0318]
[1729533476996,4.58,165.94,165.92,3.0147]
[1729533480491,4.58,165.93,165.92,3.0147]
[1729533480693,4.2396,165.97,165.94,3.0143]
[1729533480895,4.58,165.96,165.88,6.031]
[1729533481099,4.58,165.97,165.9,3.015]
[1729533481397,4.58,165.98,165.91,2.5714]
[1729533482493,4.58,165.98,165.95,3.0141]
[1729533482697,4.58,165.98,165.91,2.5714]
[1729533483195,4.58,165.98,165.94,3.0144]
[1729533483500,4.58,165.98,165.94,3.0143]
[1729533485806,7.5937,165.98,165.94,3.0143]
[1729533489803,3.0137,165.98,165.94,3.0143]
[1729533490111,4.58,165.97,165.94,3.0143]
[1729533491703,16.11398718,166.01,165.97,3.0138]
[1729533491904,4.58,166.0,165.91,2.5714]
[1729533492408,4.58,166.0,165.91,4.0792536]
[1729533492608,4.58,166.0,165.98,3.0136]
[1729533492809,4.58,166.0,165.91,8.6592536]
[1729533493013,4.58,166.0,165.91,7.1514]
[1729533493303,16.11398718,166.01,165.91,7.1514]
[1729533493513,4.58,166.0,165.91,7.1514]
[1729533493706,4.58,166.0,165.99,3.0135]
[1729533493900,16.11398718,166.01,165.91,13.1811]
[1729533494106,4.58,166.0,165.91,13.1811]
[1729533494411,4.58,166.0,165.99,3.0135]
[1729533497516,16.11398718,166.01,166.0,3.0134]
[1729533508224,16.11398718,166.01,165.92,6.0296]
[1729533509918,16.11398718,166.01,165.91,2.5714]
[1729533510125,17.33988718,166.01,165.91,2.5714]
[1729533510721,20.35308718,166.01,165.96,3.0139]
[1729533513332,20.35308718,166.01,165.97,3.0139]
[1729533517633,20.35308718,166.01,165.98,3.0137]
[1729533522842,3.0139,165.97,165.93,3.0145]
[1729533523037,4.58,165.96,165.87,1.3179]
[1729533523233,4.58,165.95,165.87,1.3179]
[1729533523834,4.58,165.95,165.94,3.0144]
[1729533524339,2.6342,166.0,165.87,1.3179]
[1729533524529,4.58,165.99,165.87,2.82557577]
[1729533524738,4.58,165.99,165.88,1.50767577]
[1729533524940,4.58,165.99,165.89,4.58]
[1729533525235,4.58,165.99,165.89,6.08767577]
[1729533525437,4.58,165.99,165.89,12.11837577]
[1729533526739,4.58,165.99,165.89,10.6107]
[1729533526940,4.58,165.99,165.97,3.0139]
[1729533529144,3.0141,165.96,165.92,3.0147]
[1729533529351,4.58,165.95,165.92,3.0147]
[1729533529646,4.58,165.95,165.86,1.50769736]
[1729533529841,4.58,165.95,165.91,3.0149]
[1729533530036,7.5943,165.95,165.91,3.0149]
[1729533530238,4.58,165.95,165.87,2.41285189]
[1729533530444,4.58,165.95,165.92,3.0148]
[1729533531348,4.58,165.95,165.87,1.5080238]
[1729533531349,4.58,165.95,165.88,1.5080238]
[1729533531643,4.58,165.95,165.93,3.0146]